[Event "Late-Titled-Tuesday-Blitz-September-05-2023"]
[Site "Chess.com"]
[Date "2023.09.05"]
[Round "1"]
[White "MKlose11"]
[Black "Nick12772"]
[Result "1-0"]
[WhiteElo "2642"]
[BlackElo "2337"]
[TimeControl "180+1"]
[EndTime "14:06:45 PDT"]
[Termination "MKlose11 won by resignation"]

1. e4 {[%clk 0:02:59.7]} 1... e6 {[%clk 0:03:00.2]} 2. Nf3 {[%clk 0:02:56.9]}
2... d5 {[%clk 0:03:01.1]} 3. e5 {[%clk 0:02:57.8]} 3... c5 {[%clk 0:03:01]} 4.
b4 {[%clk 0:02:39.4]} 4... b6 {[%clk 0:03:01.2]} 5. bxc5 {[%clk 0:02:32.6]} 5...
bxc5 {[%clk 0:03:02.1]} 6. c3 {[%clk 0:02:32.1]} 6... c4 {[%clk 0:02:58.9]} 7.
d4 {[%clk 0:02:22.5]} 7... cxd3 {[%clk 0:02:58.8]} 8. Bxd3 {[%clk 0:02:22.6]}
8... Bc5 {[%clk 0:02:50.1]} 9. O-O {[%clk 0:02:22.1]} 9... h6 {[%clk 0:02:46.4]}
10. Nbd2 {[%clk 0:02:19.4]} 10... Ne7 {[%clk 0:02:45.7]} 11. Nb3 {[%clk
0:02:17.6]} 11... Bb6 {[%clk 0:02:44.8]} 12. Ba3 {[%clk 0:02:08.6]} 12... O-O
{[%clk 0:02:43.2]} 13. Rc1 {[%clk 0:02:06.6]} 13... Ba6 {[%clk 0:02:39.4]} 14.
Re1 {[%clk 0:02:05.5]} 14... Bxd3 {[%clk 0:02:37.2]} 15. Qxd3 {[%clk 0:02:06.4]}
15... Nd7 {[%clk 0:02:32.5]} 16. c4 {[%clk 0:02:04.7]} 16... dxc4 {[%clk
0:02:25]} 17. Rxc4 {[%clk 0:02:03.8]} 17... Qe8 {[%clk 0:01:38.7]} 18. h3 {[%clk
0:01:37.5]} 18... g6 {[%clk 0:01:28.3]} 19. Qd2 {[%clk 0:01:33.9]} 19... Kg7
{[%clk 0:01:25.3]} 20. Rh4 {[%clk 0:01:30.4]} 20... Rh8 {[%clk 0:01:25]} 21. Ra4
{[%clk 0:01:21.1]} 21... Nd5 {[%clk 0:01:19]} 22. Rc4 {[%clk 0:01:06.3]} 22...
Rc8 {[%clk 0:01:17.6]} 23. Rxc8 {[%clk 0:01:04.9]} 23... Qxc8 {[%clk 0:01:18.5]}
24. Nbd4 {[%clk 0:01:02.9]} 24... Qb7 {[%clk 0:01:08.4]} 25. Bd6 {[%clk
0:00:59.9]} 25... Rc8 {[%clk 0:01:06.3]} 26. Rc1 {[%clk 0:00:55.5]} 26... Rxc1+
{[%clk 0:00:58]} 27. Qxc1 {[%clk 0:00:51.2]} 27... Qa6 {[%clk 0:00:49.6]} 28.
Qc6 {[%clk 0:00:44.1]} 28... Nf8 {[%clk 0:00:24.7]} 29. Qe8 {[%clk 0:00:43.7]}
29... Nh7 {[%clk 0:00:23]} 30. Qd7 {[%clk 0:00:21.8]} 30... Qxa2 {[%clk
0:00:19.7]} 31. Nxe6+ {[%clk 0:00:21.9]} 31... Kh8 {[%clk 0:00:15.3]} 32. Qe8+
{[%clk 0:00:20.9]} 1-0

[Event "Late-Titled-Tuesday-Blitz-September-05-2023"]
[Site "Chess.com"]
[Date "2023.09.05"]
[Round "1"]
[White "dosto07"]
[Black "PNEPaul"]
[Result "1-0"]
[WhiteElo "2511"]
[BlackElo "1885"]
[TimeControl "180+1"]
[EndTime "14:06:45 PDT"]
[Termination "dosto07 won on time"]

1. e4 {[%clk 0:03:00.9]} 1... e5 {[%clk 0:02:59.1]} 2. Nf3 {[%clk 0:03:00.2]}
2... Nc6 {[%clk 0:02:59.1]} 3. Bb5 {[%clk 0:03:00.8]} 3... f5 {[%clk 0:02:58.6]}
4. d3 {[%clk 0:03:00]} 4... Nf6 {[%clk 0:02:58.1]} 5. O-O {[%clk 0:02:59.2]}
5... Be7 {[%clk 0:02:58.3]} 6. exf5 {[%clk 0:02:49.3]} 6... O-O {[%clk 0:02:58]}
7. Bxc6 {[%clk 0:02:43.1]} 7... dxc6 {[%clk 0:02:57.7]} 8. Nxe5 {[%clk
0:02:42.8]} 8... Bd6 {[%clk 0:02:57.8]} 9. Nc4 {[%clk 0:02:40.6]} 9... Bxf5
{[%clk 0:02:57.3]} 10. Nc3 {[%clk 0:02:33.7]} 10... Ng4 {[%clk 0:02:56.7]} 11.
Nxd6 {[%clk 0:02:30.3]} 11... Qxd6 {[%clk 0:02:56.5]} 12. g3 {[%clk 0:02:30.1]}
12... Rae8 {[%clk 0:02:22.1]} 13. Bf4 {[%clk 0:02:29]} 13... Qg6 {[%clk
0:02:16.5]} 14. Qf3 {[%clk 0:02:14.2]} 14... Nf6 {[%clk 0:02:14.9]} 15. Rfe1
{[%clk 0:02:04]} 15... Bg4 {[%clk 0:01:47.2]} 16. Qg2 {[%clk 0:02:00.6]} 16...
Nh5 {[%clk 0:01:45.3]} 17. Be5 {[%clk 0:01:33.1]} 17... Bf3 {[%clk 0:01:41.5]}
18. Qf1 {[%clk 0:01:30.6]} 18... Rf5 {[%clk 0:01:18.9]} 19. d4 {[%clk
0:01:28.5]} 19... c5 {[%clk 0:00:41.4]} 20. Re3 {[%clk 0:01:23.5]} 20... cxd4
{[%clk 0:00:39.2]} 21. Bxd4 {[%clk 0:01:23.5]} 21... Rxe3 {[%clk 0:00:36.5]} 22.
Bxe3 {[%clk 0:01:23.2]} 22... Nf6 {[%clk 0:00:33.3]} 23. Qc4+ {[%clk 0:01:11.4]}
23... Kf8 {[%clk 0:00:17.1]} 24. Bc5+ {[%clk 0:01:08.8]} 24... Ke8 {[%clk
0:00:17.2]} 25. Re1+ {[%clk 0:01:06.8]} 25... Kd7 {[%clk 0:00:15.5]} 26. Qd3+
{[%clk 0:00:57.8]} 26... Kc8 {[%clk 0:00:14.1]} 27. Be7 {[%clk 0:00:46.9]} 27...
b6 {[%clk 0:00:11.3]} 28. Bxf6 {[%clk 0:00:38.9]} 28... gxf6 {[%clk 0:00:10.9]}
29. Re7 {[%clk 0:00:31.4]} 29... Re5 {[%clk 0:00:02.2]} 30. Qd7+ {[%clk
0:00:26.9]} 1-0

[Event "Late-Titled-Tuesday-Blitz-September-05-2023"]
[Site "Chess.com"]
[Date "2023.09.05"]
[Round "1"]
[White "a-z30"]
[Black "Mesa_1"]
[Result "0-1"]
[WhiteElo "2295"]
[BlackElo "2593"]
[TimeControl "180+1"]
[EndTime "14:06:46 PDT"]
[Termination "Mesa_1 won on time"]

1. d3 {[%clk 0:03:00.9]} 1... e5 {[%clk 0:02:59.4]} 2. Nf3 {[%clk 0:03:01.1]}
2... Nc6 {[%clk 0:03:00.1]} 3. g3 {[%clk 0:03:01.5]} 3... d5 {[%clk 0:02:59.4]}
4. Bg2 {[%clk 0:03:01.9]} 4... Nf6 {[%clk 0:02:59.3]} 5. O-O {[%clk 0:03:02.5]}
5... Be7 {[%clk 0:02:59.3]} 6. Bg5 {[%clk 0:03:02.5]} 6... Be6 {[%clk
0:02:58.4]} 7. Nc3 {[%clk 0:03:01.5]} 7... d4 {[%clk 0:02:56.1]} 8. Bxf6 {[%clk
0:02:59]} 8... gxf6 {[%clk 0:02:57]} 9. Ne4 {[%clk 0:02:48.9]} 9... f5 {[%clk
0:02:47.5]} 10. Ned2 {[%clk 0:02:48.4]} 10... h5 {[%clk 0:02:48.2]} 11. c3
{[%clk 0:02:39.8]} 11... h4 {[%clk 0:02:42.8]} 12. cxd4 {[%clk 0:02:39.2]} 12...
hxg3 {[%clk 0:02:42.8]} 13. hxg3 {[%clk 0:02:32.7]} 13... exd4 {[%clk
0:02:41.9]} 14. Qa4 {[%clk 0:02:20.8]} 14... Qd7 {[%clk 0:02:42.2]} 15. Rfc1
{[%clk 0:02:06.4]} 15... Bd5 {[%clk 0:02:39.2]} 16. Nb3 {[%clk 0:02:00.7]} 16...
f4 {[%clk 0:02:15.7]} 17. Nbxd4 {[%clk 0:01:29]} 17... fxg3 {[%clk 0:02:10.7]}
18. fxg3 {[%clk 0:01:27.5]} 18... O-O-O {[%clk 0:01:45.1]} 19. e4 {[%clk
0:01:20.8]} 19... Nxd4 {[%clk 0:01:38.5]} 20. Qxd4 {[%clk 0:00:48.7]} 20... Bc6
{[%clk 0:01:20.1]} 21. Qxd7+ {[%clk 0:00:49.6]} 21... Bxd7 {[%clk 0:01:15.9]}
22. Ne5 {[%clk 0:00:45.9]} 22... Be8 {[%clk 0:01:08.2]} 23. Rc2 {[%clk
0:00:22.6]} 23... f6 {[%clk 0:00:56.9]} 24. Rac1 {[%clk 0:00:19.7]} 24... c6
{[%clk 0:00:49.2]} 25. Nc4 {[%clk 0:00:13.4]} 25... Rxd3 {[%clk 0:00:46.4]} 26.
e5 {[%clk 0:00:13]} 26... Rxg3 {[%clk 0:00:40.9]} 27. Nd6+ {[%clk 0:00:11.2]}
27... Bxd6 {[%clk 0:00:39.3]} 28. exd6 {[%clk 0:00:12.1]} 28... Rhg8 {[%clk
0:00:38.9]} 29. Rf1 {[%clk 0:00:11.1]} 29... Bg6 {[%clk 0:00:32.7]} 30. Re2
{[%clk 0:00:02.7]} 30... Bd3 {[%clk 0:00:32.9]} 0-1

[Event "Late-Titled-Tuesday-Blitz-September-05-2023"]
[Site "Chess.com"]
[Date "2023.09.05"]
[Round "1"]
[White "AquivaRubinstein"]
[Black "Sina_Movahed"]
[Result "0-1"]
[WhiteElo "2484"]
[BlackElo "2978"]
[TimeControl "180+1"]
[EndTime "14:06:49 PDT"]
[Termination "Sina_Movahed won on time"]

1. d4 {[%clk 0:03:00.9]} 1... Nf6 {[%clk 0:02:48.6]} 2. c4 {[%clk 0:02:59.7]}
2... g6 {[%clk 0:02:47.9]} 3. Nc3 {[%clk 0:02:59.6]} 3... Bg7 {[%clk 0:02:48.8]}
4. e4 {[%clk 0:02:59.5]} 4... O-O {[%clk 0:02:49.7]} 5. Be2 {[%clk 0:02:59.6]}
5... d6 {[%clk 0:02:50.2]} 6. Be3 {[%clk 0:02:59.7]} 6... Nc6 {[%clk 0:02:49.7]}
7. d5 {[%clk 0:02:48]} 7... Ne5 {[%clk 0:02:49]} 8. h3 {[%clk 0:02:45.6]} 8...
e6 {[%clk 0:02:47.6]} 9. f4 {[%clk 0:02:41.7]} 9... Ned7 {[%clk 0:02:47.3]} 10.
Nf3 {[%clk 0:02:16.4]} 10... exd5 {[%clk 0:02:46.6]} 11. cxd5 {[%clk 0:02:13.8]}
11... Re8 {[%clk 0:02:45.7]} 12. Nd2 {[%clk 0:02:13.3]} 12... c6 {[%clk
0:02:44.3]} 13. dxc6 {[%clk 0:02:06.5]} 13... bxc6 {[%clk 0:02:45.2]} 14. O-O
{[%clk 0:02:05.2]} 14... Rb8 {[%clk 0:02:30.7]} 15. Qc2 {[%clk 0:01:49.4]} 15...
Nd5 {[%clk 0:02:26.4]} 16. exd5 {[%clk 0:01:32.1]} 16... Rxe3 {[%clk 0:02:27.3]}
17. Bf3 {[%clk 0:01:20.2]} 17... Rxb2 {[%clk 0:02:15.7]} 18. Qxb2 {[%clk
0:01:17.4]} 18... Rxc3 {[%clk 0:02:16.6]} 19. dxc6 {[%clk 0:00:55.5]} 19... Rxf3
{[%clk 0:02:14.4]} 20. Qb5 {[%clk 0:00:37.6]} 20... Rxf1+ {[%clk 0:01:56.3]} 21.
Rxf1 {[%clk 0:00:37.5]} 21... Nc5 {[%clk 0:01:56.9]} 22. Nc4 {[%clk 0:00:26.7]}
22... Ba6 {[%clk 0:01:52.3]} 23. Qb4 {[%clk 0:00:20.5]} 23... Qc7 {[%clk
0:01:49.5]} 24. Re1 {[%clk 0:00:16.9]} 24... Bd4+ {[%clk 0:01:46.1]} 25. Kh1
{[%clk 0:00:16.1]} 25... Qxc6 {[%clk 0:01:46.5]} 26. Qb8+ {[%clk 0:00:14.9]}
26... Kg7 {[%clk 0:01:45.5]} 27. Nxd6 {[%clk 0:00:15.3]} 27... Ne6 {[%clk
0:01:33.6]} 28. Ne8+ {[%clk 0:00:13.8]} 28... Kh6 {[%clk 0:01:33]} 29. f5 {[%clk
0:00:14]} 29... Bb7 {[%clk 0:01:30.7]} 30. Qg3 {[%clk 0:00:09.3]} 30... gxf5
{[%clk 0:01:24.4]} 31. Qh4+ {[%clk 0:00:06.4]} 31... Kg6 {[%clk 0:01:24.2]} 32.
Qg3+ {[%clk 0:00:06.7]} 32... Kh5 {[%clk 0:01:21.4]} 33. Rxe6 {[%clk 0:00:03.5]}
33... Qxg2+ {[%clk 0:01:17.2]} 34. Qxg2 {[%clk 0:00:03.4]} 34... Bxg2+ {[%clk
0:01:18.1]} 35. Kxg2 {[%clk 0:00:03.8]} 35... fxe6 {[%clk 0:01:19]} 36. Nc7
{[%clk 0:00:04.1]} 36... e5 {[%clk 0:01:18]} 37. Kf3 {[%clk 0:00:04.5]} 37...
Kg6 {[%clk 0:01:12.7]} 38. Nb5 {[%clk 0:00:04.9]} 38... Kf6 {[%clk 0:01:12.5]}
39. Nd6 {[%clk 0:00:03.9]} 39... e4+ {[%clk 0:01:11.2]} 40. Ke2 {[%clk
0:00:03.2]} 40... Ke5 {[%clk 0:01:10.7]} 41. Nc4+ {[%clk 0:00:03.1]} 41... Kd5
{[%clk 0:01:11.2]} 42. Nd2 {[%clk 0:00:03.2]} 42... f4 {[%clk 0:01:11.7]} 43. h4
{[%clk 0:00:02.8]} 43... h5 {[%clk 0:01:11.8]} 44. Nb3 {[%clk 0:00:02.9]} 44...
f3+ {[%clk 0:01:11.4]} 45. Kd2 {[%clk 0:00:02.7]} 45... e3+ {[%clk 0:01:12.3]}
46. Kd3 {[%clk 0:00:03.2]} 46... e2 {[%clk 0:01:12.6]} 47. Kd2 {[%clk
0:00:02.5]} 47... Bc3+ {[%clk 0:01:11.7]} 0-1

[Event "Late-Titled-Tuesday-Blitz-September-05-2023"]
[Site "Chess.com"]
[Date "2023.09.05"]
[Round "1"]
[White "SalihEke"]
[Black "MarcoRiehle"]
[Result "1-0"]
[WhiteElo "2465"]
[BlackElo "2797"]
[TimeControl "180+1"]
[EndTime "14:06:54 PDT"]
[Termination "SalihEke won by checkmate"]

1. d4 {[%clk 0:03:00.2]} 1... d5 {[%clk 0:00:33.7]} 2. c3 {[%clk 0:02:59.7]}
2... e6 {[%clk 0:00:34]} 3. Nf3 {[%clk 0:03:00.4]} 3... c5 {[%clk 0:00:34.9]} 4.
Bf4 {[%clk 0:03:01.1]} 4... Nc6 {[%clk 0:00:35.5]} 5. e3 {[%clk 0:03:01.7]} 5...
Bd6 {[%clk 0:00:36.4]} 6. Bg3 {[%clk 0:03:01.8]} 6... Nf6 {[%clk 0:00:36.9]} 7.
Nbd2 {[%clk 0:03:02.3]} 7... O-O {[%clk 0:00:37.7]} 8. Bd3 {[%clk 0:03:03]} 8...
Re8 {[%clk 0:00:38.6]} 9. O-O {[%clk 0:03:03.4]} 9... e5 {[%clk 0:00:37.7]} 10.
dxe5 {[%clk 0:03:03.6]} 10... Nxe5 {[%clk 0:00:37]} 11. Nxe5 {[%clk 0:03:04.2]}
11... Bxe5 {[%clk 0:00:37.9]} 12. Qc2 {[%clk 0:03:01.2]} 12... Bxg3 {[%clk
0:00:38]} 13. hxg3 {[%clk 0:03:02.1]} 13... Bg4 {[%clk 0:00:38.4]} 14. c4 {[%clk
0:02:54.5]} 14... d4 {[%clk 0:00:37.9]} 15. exd4 {[%clk 0:02:53.9]} 15... cxd4
{[%clk 0:00:38.1]} 16. Rfe1 {[%clk 0:02:53.3]} 16... Qd7 {[%clk 0:00:36.5]} 17.
Nf3 {[%clk 0:02:43.7]} 17... Bxf3 {[%clk 0:00:35.7]} 18. gxf3 {[%clk 0:02:44]}
18... h6 {[%clk 0:00:36.6]} 19. Kg2 {[%clk 0:02:43.8]} 19... Qd6 {[%clk
0:00:35.5]} 20. Qd2 {[%clk 0:02:41]} 20... Rad8 {[%clk 0:00:34.4]} 21. b4 {[%clk
0:02:40.4]} 21... b6 {[%clk 0:00:34.1]} 22. a3 {[%clk 0:02:39.8]} 22... Rc8
{[%clk 0:00:33.7]} 23. Rxe8+ {[%clk 0:02:38.7]} 23... Rxe8 {[%clk 0:00:34.6]}
24. Re1 {[%clk 0:02:39.3]} 24... Re5 {[%clk 0:00:34.6]} 25. Qf4 {[%clk
0:01:51.6]} 25... Nd7 {[%clk 0:00:34.6]} 26. Re4 {[%clk 0:01:26.1]} 26... h5
{[%clk 0:00:22.3]} 27. Rxd4 {[%clk 0:01:23.8]} 27... Qe7 {[%clk 0:00:21.6]} 28.
Rxd7 {[%clk 0:01:08.6]} 28... Qxd7 {[%clk 0:00:22.5]} 29. Qxe5 {[%clk
0:01:08.6]} 29... Qxd3 {[%clk 0:00:23.1]} 30. Qe8+ {[%clk 0:01:08.9]} 30... Kh7
{[%clk 0:00:22.9]} 31. Qxf7 {[%clk 0:01:09.4]} 31... Qxa3 {[%clk 0:00:23.4]} 32.
Qxh5+ {[%clk 0:01:08.9]} 32... Kg8 {[%clk 0:00:24.2]} 33. Qd5+ {[%clk
0:01:07.3]} 33... Kh7 {[%clk 0:00:24.3]} 34. c5 {[%clk 0:01:02.5]} 34... bxc5
{[%clk 0:00:17.9]} 35. bxc5 {[%clk 0:01:02.8]} 35... Qc3 {[%clk 0:00:17.4]} 36.
c6 {[%clk 0:01:02.6]} 36... Kg6 {[%clk 0:00:15.9]} 37. Qd7 {[%clk 0:00:59.8]}
37... a5 {[%clk 0:00:12.1]} 38. c7 {[%clk 0:01:00.2]} 38... a4 {[%clk
0:00:11.8]} 39. c8=Q {[%clk 0:01:00.3]} 39... Qf6 {[%clk 0:00:12.7]} 40. Qce8+
{[%clk 0:00:58.1]} 40... Kh6 {[%clk 0:00:11.7]} 41. Qh3+ {[%clk 0:00:57.8]}
41... Kg5 {[%clk 0:00:11.7]} 42. Qhh5# {[%clk 0:00:58]} 1-0

[Event "Late-Titled-Tuesday-Blitz-September-05-2023"]
[Site "Chess.com"]
[Date "2023.09.05"]
[Round "1"]
[White "Amirreza_p"]
[Black "NowInChess"]
[Result "1-0"]
[WhiteElo "2575"]
[BlackElo "2275"]
[TimeControl "180+1"]
[EndTime "14:06:58 PDT"]
[Termination "Amirreza_p won on time"]

1. e4 {[%clk 0:02:58.5]} 1... e6 {[%clk 0:02:59.9]} 2. d4 {[%clk 0:02:57.5]}
2... d5 {[%clk 0:03:00.5]} 3. e5 {[%clk 0:02:57.2]} 3... c5 {[%clk 0:02:59.6]}
4. c3 {[%clk 0:02:57.3]} 4... Nc6 {[%clk 0:03:00.2]} 5. Nf3 {[%clk 0:02:57.3]}
5... Qb6 {[%clk 0:03:00.2]} 6. Be2 {[%clk 0:02:54.1]} 6... f6 {[%clk 0:02:58.4]}
7. O-O {[%clk 0:02:52.5]} 7... fxe5 {[%clk 0:02:53.8]} 8. dxe5 {[%clk 0:02:53]}
8... g6 {[%clk 0:02:47.5]} 9. c4 {[%clk 0:02:46.1]} 9... d4 {[%clk 0:02:35.3]}
10. Re1 {[%clk 0:02:35.5]} 10... Bg7 {[%clk 0:02:34.3]} 11. Bd3 {[%clk
0:02:35.6]} 11... Nh6 {[%clk 0:02:27.7]} 12. Bxh6 {[%clk 0:02:29.7]} 12... Bxh6
{[%clk 0:02:27.3]} 13. Nbd2 {[%clk 0:02:30.3]} 13... Bg7 {[%clk 0:02:17.1]} 14.
a3 {[%clk 0:02:23.4]} 14... O-O {[%clk 0:02:04.2]} 15. Qc2 {[%clk 0:02:18.7]}
15... Bd7 {[%clk 0:01:58.6]} 16. h4 {[%clk 0:02:17.8]} 16... Rf5 {[%clk
0:01:32]} 17. Bxf5 {[%clk 0:02:15.4]} 17... gxf5 {[%clk 0:01:30.7]} 18. Rab1
{[%clk 0:02:14.4]} 18... Qc7 {[%clk 0:01:19]} 19. b4 {[%clk 0:02:12.6]} 19... b6
{[%clk 0:01:13.2]} 20. bxc5 {[%clk 0:02:05.3]} 20... bxc5 {[%clk 0:01:14.1]} 21.
Qb3 {[%clk 0:02:02.1]} 21... Rb8 {[%clk 0:01:08.6]} 22. Qd3 {[%clk 0:02:02.2]}
22... Nxe5 {[%clk 0:01:06.8]} 23. Rxb8+ {[%clk 0:01:58.6]} 23... Qxb8 {[%clk
0:01:07.7]} 24. Nxe5 {[%clk 0:01:57.7]} 24... Bxe5 {[%clk 0:01:08.6]} 25. Nf3
{[%clk 0:01:57]} 25... Bc7 {[%clk 0:00:56.4]} 26. Qd2 {[%clk 0:01:55.1]} 26...
Bf4 {[%clk 0:00:53.3]} 27. Qa5 {[%clk 0:01:53.1]} 27... Bd6 {[%clk 0:00:48.4]}
28. Ng5 {[%clk 0:01:42.5]} 28... e5 {[%clk 0:00:42.6]} 29. Qd2 {[%clk
0:01:37.2]} 29... e4 {[%clk 0:00:34.8]} 30. Nxe4 {[%clk 0:01:32.8]} 30... fxe4
{[%clk 0:00:28.3]} 31. Qg5+ {[%clk 0:01:19.5]} 31... Kh8 {[%clk 0:00:20]} 32.
Qf6+ {[%clk 0:01:18.7]} 32... Kg8 {[%clk 0:00:20.3]} 33. h5 {[%clk 0:01:13.1]}
33... Qf8 {[%clk 0:00:14]} 34. Qg5+ {[%clk 0:01:12.1]} 34... Kh8 {[%clk
0:00:10.1]} 35. Rxe4 {[%clk 0:01:10.5]} 35... Bc6 {[%clk 0:00:08.9]} 36. Re6
{[%clk 0:01:08.5]} 36... Bf4 {[%clk 0:00:07.3]} 37. Qf6+ {[%clk 0:00:51.1]}
37... Qxf6 {[%clk 0:00:06.7]} 38. Rxf6 {[%clk 0:00:52]} 38... Be5 {[%clk
0:00:03]} 39. Rxc6 {[%clk 0:00:51.6]} 39... d3 {[%clk 0:00:03.4]} 40. Rxc5
{[%clk 0:00:49.3]} 40... d2 {[%clk 0:00:01.6]} 41. Rd5 {[%clk 0:00:49.9]} 41...
Bc3 {[%clk 0:00:01.9]} 42. Kf1 {[%clk 0:00:49.8]} 42... Kg7 {[%clk 0:00:02.2]}
43. Ke2 {[%clk 0:00:50.2]} 43... Kf6 {[%clk 0:00:02.8]} 44. Rxd2 {[%clk
0:00:50.5]} 1-0

[Event "Late-Titled-Tuesday-Blitz-September-05-2023"]
[Site "Chess.com"]
[Date "2023.09.05"]
[Round "1"]
[White "vladislavkovalev"]
[Black "DeArron_Fox"]
[Result "1-0"]
[WhiteElo "2914"]
[BlackElo "2465"]
[TimeControl "180+1"]
[EndTime "14:06:59 PDT"]
[Termination "vladislavkovalev won on time"]

1. e4 {[%clk 0:02:58.2]} 1... c5 {[%clk 0:02:59.9]} 2. Nf3 {[%clk 0:02:58.4]}
2... e6 {[%clk 0:03:00.3]} 3. c3 {[%clk 0:02:58.5]} 3... d5 {[%clk 0:02:59.9]}
4. exd5 {[%clk 0:02:59.4]} 4... Qxd5 {[%clk 0:03:00.3]} 5. d4 {[%clk 0:02:58]}
5... Nf6 {[%clk 0:03:00.6]} 6. Na3 {[%clk 0:02:56.9]} 6... Nc6 {[%clk
0:02:56.2]} 7. Nb5 {[%clk 0:02:54.5]} 7... Qd8 {[%clk 0:02:55.9]} 8. dxc5 {[%clk
0:02:51.4]} 8... Bxc5 {[%clk 0:02:55.1]} 9. Qxd8+ {[%clk 0:02:48.7]} 9... Kxd8
{[%clk 0:02:56]} 10. Bf4 {[%clk 0:02:27.9]} 10... Ne4 {[%clk 0:02:30.6]} 11. Bg3
{[%clk 0:01:40.1]} 11... Nxg3 {[%clk 0:02:27.8]} 12. hxg3 {[%clk 0:01:41]} 12...
a6 {[%clk 0:02:22.8]} 13. Nbd4 {[%clk 0:01:39.3]} 13... Nxd4 {[%clk 0:02:10.6]}
14. Nxd4 {[%clk 0:01:40.2]} 14... Bxd4 {[%clk 0:01:39.6]} 15. Rd1 {[%clk
0:01:37.9]} 15... e5 {[%clk 0:01:32.2]} 16. cxd4 {[%clk 0:01:38]} 16... exd4
{[%clk 0:01:32.6]} 17. Rxd4+ {[%clk 0:01:38.9]} 17... Ke7 {[%clk 0:01:32.5]} 18.
Bc4 {[%clk 0:01:32.3]} 18... Be6 {[%clk 0:01:15.8]} 19. Bxe6 {[%clk 0:01:20.3]}
19... fxe6 {[%clk 0:01:10.9]} 20. Ke2 {[%clk 0:01:17.7]} 20... Rad8 {[%clk
0:01:08.7]} 21. Rxd8 {[%clk 0:01:17.3]} 21... Kxd8 {[%clk 0:01:08.2]} 22. Ke3
{[%clk 0:01:16.7]} 22... h6 {[%clk 0:01:06.6]} 23. Ke4 {[%clk 0:01:15.2]} 23...
Ke7 {[%clk 0:00:43.2]} 24. Rc1 {[%clk 0:01:15.3]} 24... Kd6 {[%clk 0:00:38.2]}
25. g4 {[%clk 0:01:09.3]} 25... Rf8 {[%clk 0:00:35.1]} 26. f4 {[%clk 0:01:09.4]}
26... g5 {[%clk 0:00:26.2]} 27. g3 {[%clk 0:01:08.9]} 27... Rf7 {[%clk
0:00:25.2]} 28. Rd1+ {[%clk 0:01:05.9]} 28... Ke7 {[%clk 0:00:13.5]} 29. Ke5
{[%clk 0:01:05.7]} 29... gxf4 {[%clk 0:00:11.4]} 30. gxf4 {[%clk 0:01:06.6]}
30... Rg7 {[%clk 0:00:10.3]} 31. Rd6 {[%clk 0:01:07.2]} 31... Rg6 {[%clk
0:00:03.6]} 32. f5 {[%clk 0:00:56.5]} 32... Rxg4 {[%clk 0:00:03]} 33. Rxe6+
{[%clk 0:00:57.2]} 33... Kd7 {[%clk 0:00:02.3]} 34. Rxh6 {[%clk 0:00:57.9]}
34... Rg2 {[%clk 0:00:02.1]} 35. Rb6 {[%clk 0:00:57.6]} 35... Re2+ {[%clk
0:00:01.7]} 36. Kf6 {[%clk 0:00:57.7]} 36... Kc7 {[%clk 0:00:02.6]} 37. Rb3
{[%clk 0:00:58.1]} 37... b5 {[%clk 0:00:02.3]} 38. Kg7 {[%clk 0:00:56.4]} 38...
Rg2+ {[%clk 0:00:01.6]} 39. Kf7 {[%clk 0:00:56.8]} 39... Kb6 {[%clk 0:00:02]}
40. f6 {[%clk 0:00:56.5]} 40... a5 {[%clk 0:00:02]} 41. a3 {[%clk 0:00:54.6]}
41... a4 {[%clk 0:00:02.1]} 42. Rb4 {[%clk 0:00:55]} 42... Kc5 {[%clk
0:00:02.3]} 43. Ke6 {[%clk 0:00:52.4]} 43... Re2+ {[%clk 0:00:02.8]} 44. Kf5
{[%clk 0:00:52.9]} 44... Rf2+ {[%clk 0:00:02.3]} 45. Rf4 {[%clk 0:00:53.5]}
45... Rd2 {[%clk 0:00:01.9]} 46. f7 {[%clk 0:00:53.8]} 46... Rd8 {[%clk
0:00:02.5]} 47. Ke6 {[%clk 0:00:54.4]} 1-0

[Event "Late-Titled-Tuesday-Blitz-September-05-2023"]
[Site "Chess.com"]
[Date "2023.09.05"]
[Round "1"]
[White "JacksterThePro"]
[Black "ChessSwole"]
[Result "1-0"]
[WhiteElo "2413"]
[BlackElo "2688"]
[TimeControl "180+1"]
[EndTime "14:06:59 PDT"]
[Termination "JacksterThePro won on time"]

1. d4 {[%clk 0:03:00.9]} 1... Nf6 {[%clk 0:02:42.5]} 2. c4 {[%clk 0:02:59.6]}
2... e6 {[%clk 0:02:40.4]} 3. Nc3 {[%clk 0:02:59.4]} 3... Bb4 {[%clk 0:02:38.4]}
4. f3 {[%clk 0:02:58.5]} 4... d5 {[%clk 0:02:29.2]} 5. a3 {[%clk 0:02:55.7]}
5... Be7 {[%clk 0:02:28.8]} 6. e4 {[%clk 0:02:53.5]} 6... dxe4 {[%clk
0:02:26.7]} 7. fxe4 {[%clk 0:02:54.4]} 7... e5 {[%clk 0:02:26.4]} 8. d5 {[%clk
0:02:51.5]} 8... Bc5 {[%clk 0:02:23.8]} 9. Nf3 {[%clk 0:02:51.3]} 9... Bg4
{[%clk 0:02:22]} 10. h3 {[%clk 0:02:46.6]} 10... Bxf3 {[%clk 0:02:20.7]} 11.
Qxf3 {[%clk 0:02:47.5]} 11... O-O {[%clk 0:02:21]} 12. Bd2 {[%clk 0:02:35]}
12... c6 {[%clk 0:02:17.8]} 13. Bd3 {[%clk 0:02:33.6]} 13... Bd4 {[%clk
0:01:55.6]} 14. O-O-O {[%clk 0:02:26.9]} 14... Re8 {[%clk 0:01:48.6]} 15. g4
{[%clk 0:02:17.6]} 15... cxd5 {[%clk 0:01:44.7]} 16. exd5 {[%clk 0:01:45.8]}
16... Na6 {[%clk 0:01:30.3]} 17. g5 {[%clk 0:01:39.6]} 17... Nd7 {[%clk
0:01:29]} 18. Rdf1 {[%clk 0:01:26.2]} 18... Rf8 {[%clk 0:01:19]} 19. Bc2 {[%clk
0:01:00.7]} 19... Rc8 {[%clk 0:01:10.3]} 20. Qd3 {[%clk 0:00:56.8]} 20... g6
{[%clk 0:01:09.3]} 21. h4 {[%clk 0:00:57.1]} 21... Qc7 {[%clk 0:00:42.3]} 22. b3
{[%clk 0:00:53.2]} 22... Qc5 {[%clk 0:00:31]} 23. h5 {[%clk 0:00:47.2]} 23...
Qxa3+ {[%clk 0:00:27.9]} 24. Kd1 {[%clk 0:00:36.2]} 24... Nb4 {[%clk 0:00:22.6]}
25. Qh3 {[%clk 0:00:33.7]} 25... Nxc2 {[%clk 0:00:06.5]} 26. hxg6 {[%clk
0:00:22.7]} 26... Ne3+ {[%clk 0:00:05.6]} 27. Ke2 {[%clk 0:00:16]} 27... Nf6
{[%clk 0:00:03.9]} 28. Rxf6 {[%clk 0:00:11.8]} 1-0